Cogmind - Beta 13 @@@ ROGUE MODE // 2024.05.23 @ 07:55:17 Player: UwUtismXD Result: Self-destructed Performance ------------- Evolutions (2) 1000 Regions Visited (5) 1000 Robots Destroyed (15) 75 Value Destroyed (237) 237 Prototype IDs (0) 0 Alien Tech Used (0) 0 Bonus (0) 0 TOTAL SCORE: 2312 Bonus ------- None Cogmind --------- Core Integrity 453/550 Matter 250/300 Energy 410/410 System Corruption 0% Temperature Cool (0) Movement Treading (160) Location -8/Materials Parts ------- > --- POWER (2) -------- Light Nuclear Core > --- PROPULSION (2) --- Light Treads Light Treads > --- UTILITY (5) ------ Large Storage Unit High-capacity Battery Structural Scanner Advanced Visual Processing Unit High-powered Tractor Beam > --- WEAPON (2) ------- Small Laser Light Assault Rifle > --- INVENTORY (15) --- Compact Battery (200) Medium Matter Pod (100) Terrain Scanner ECM Suite Reflective Plating Tractor Beam Beam Cannon Makeshift Hammer Peak State ------------ > --- POWER ------------ Ion Engine Light Nuclear Core > --- PROPULSION ------- Light Treads Light Treads > --- UTILITY ---------- Large Storage Unit Structural Scanner Advanced Visual Processing Unit Sensor Array Tractor Beam > --- WEAPON ----------- Small Laser Light Assault Rifle > --- INVENTORY -------- Light Treads High-capacity Battery Medium Matter Pod Terrain Scanner ECM Suite Beam Cannon Makeshift Hammer [Rating: 16] Favorites ----------- Power Ion Engine Engine Ion Engine Power Core Light Nuclear Core Propulsion Light Treads Treads Light Treads Utility Visual Processing Unit Device Structural Scanner Storage Large Storage Unit Processor Visual Processing Unit Weapon Light Assault Rifle Energy Gun Small Laser Ballistic Gun Light Assault Rifle Build | -11 -10 -10 -10 -9 -8 ------- Run | Yrd Mat Min Exi Min Mat Slots Evolved 4 | . . . . . 4 Power 1 | . . . . . 1 Propulsion . | . . . . . . Utility 3 | . . . . . 3 Weapon . | . . . . . . Parts Attached 20 | 6 5 . . . 9 Power 3 | 1 1 . . . 1 Engine 2 | 1 1 . . . . Core 1 | . . . . . 1 Reactor . | . . . . . . Propulsion 3 | 2 . . . . 1 Treads 3 | 2 . . . . 1 Leg . | . . . . . . Wheel . | . . . . . . Hover . | . . . . . . Flight . | . . . . . . Utility 10 | 1 2 . . . 7 Device 5 | . . . . . 5 Storage 3 | 1 1 . . . 1 Processor 2 | . 1 . . . 1 Hackware . | . . . . . . Protection . | . . . . . . Artifact . | . . . . . . Weapon 4 | 2 2 . . . . Energy Gun 3 | 2 1 . . . . Energy Cannon . | . . . . . . Ballistic Gun 1 | . 1 . . . . Ballistic Cannon . | . . . . . . Launcher . | . . . . . . Special Weapon . | . . . . . . Impact Weapon . | . . . . . . Slashing Weapon . | . . . . . . Piercing Weapon . | . . . . . . Special Melee Weapon . | . . . . . . Unidentified Prototypes . | . . . . . . Parts Lost 4 | . 1 . . . 3 Power 1 | . . . . . 1 Propulsion 1 | . . . . . 1 Utility 1 | . . . . . 1 Weapon 1 | . 1 . . . . Highest Loss Streak 3 | . 1 . . . 3 To Critical Strikes . | . . . . . . Average Slot Usage (%) 98 | . 95 100 100 100 94 Engine 12 | . 14 14 14 14 5 Treads 26 | . 28 28 28 28 17 Device 2 | . . . . . 23 Storage 13 | . 13 14 14 14 12 Processor 12 | . 10 14 14 14 9 Energy Gun 14 | . 19 14 14 14 9 Ballistic Gun 12 | . 7 14 14 14 9 Naked Turns . | . . . . . . Heaviest Build 35 | 14 27 27 27 27 35 Greatest Support 40 | 40 40 40 40 40 40 Greatest Overweight (x) 1 | . . . . . 1 Average Overweight (x) . | . . . . . . Largest Inventory Capacity 15 | 8 15 15 15 15 15 Average Capacity 13 | 7 9 15 15 15 15 Most Carried 10 | 4 5 9 10 10 9 Average Carried 7 | 2 3 7 9 10 7 Final Capacity 15 | 8 15 15 15 15 15 Final Carried 10 | 2 5 9 10 10 8 Class Distribution -------------------- 100% | Mutant Dominant Class ---------------- Mutant | -10/Materials Mutant | -10/Mines Mutant | -10/Exiles Mutant | -9/Mines Mutant | -8/Materials Resources | -11 -10 -10 -10 -9 -8 ----------- Run | Yrd Mat Min Exi Min Mat Matter Collected 459 | 174 182 17 . 36 50 Remotely 50 | . . . . . 50 Salvage Created 511 | . 324 137 . . 50 Parts 33 | . 18 13 . . 2 Haulers Intercepted . | . . . . . . Recyclers Shooed 2 | . . 2 . . . Parts Field Recycled . | . . . . . . Retrieved Matter . | . . . . . . Parts Self-Destructed . | . . . . . . Prevented . | . . . . . . Kills | -11 -10 -10 -10 -9 -8 ------- Run | Yrd Mat Min Exi Min Mat Combat Hostiles Destroyed 8 | . 5 2 . . 1 Guns 8 | . 5 2 . . 1 Classes Destroyed 7 | . 5 1 . . 1 Worker 2 | . 2 . . . . Builder 1 | . . 1 . . . Recycler 2 | . 1 1 . . . Watcher 2 | . 2 . . . . Swarmer 5 | . 3 2 . . . Grunt 2 | . 2 . . . . Hunter 1 | . . . . . 1 Best Kill Streak 5 | . 5 2 . . 1 Combat Bots Only 3 | . 3 2 . . 1 Max Kills in Single Turn 2 | . 1 2 . . 1 Gunslinging 1 | . . 1 . . . Exploded . | . . . . . . Melee . | . . . . . . Uniques/NPCs Destroyed . | . . . . . . Combat | -11 -10 -10 -10 -9 -8 -------- Run | Yrd Mat Min Exi Min Mat Hostile Shots Fired 80 | . 35 4 . 5 36 Missed 27 | . 11 2 . 2 12 Damage Taken 715 | . 277 18 . 41 379 Core 147 | . 50 . . . 97 Absorbed by Shields . | . . . . . . Core Remaining (%) 90 | 100 . . . 80 . Volleys Fired 60 | . 26 9 . 2 23 Largest 2 | . 2 2 . 2 2 Hottest 90 | . 90 60 . 60 60 Shots Fired 99 | . 41 18 . 4 36 Gun 99 | . 41 18 . 4 36 Cannon . | . . . . . . Launcher . | . . . . . . Special . | . . . . . . Kinetic 40 | . 6 9 . 2 23 Thermal 50 | . 26 9 . 2 13 Explosive . | . . . . . . Electromagnetic 9 | . 9 . . . . Robot Hit Streak 10 | . 6 10 . 3 9 Robot Miss Streak 5 | . 5 2 . 1 2 Penetration Max . | . . . . . . Secondary Targets 4 | . 3 1 . . . Max Gunslinging Chain 1 | . 1 1 . . . Shots Hit Robots 63 | . 21 13 . 3 26 Core Hits 28 | . 14 7 . 2 5 Critical Kills . | . . . . . . Critical Parts Destroyed . | . . . . . . Critical Strikes 1 | . 1 . . . . Burn 1 | . 1 . . . . Melee Attacks . | . . . . . . Impact . | . . . . . . Slashing . | . . . . . . Piercing . | . . . . . . Sneak Attacks . | . . . . . . Combat Hostiles . | . . . . . . Follow-up Attacks . | . . . . . . Damage Inflicted 678 | . 310 147 . 32 189 Guns 672 | . 310 143 . 30 189 Cannons . | . . . . . . Explosions . | . . . . . . Melee . | . . . . . . Ramming 6 | . . 4 . 2 . Kinetic 207 | . 24 65 . 19 99 Thermal 367 | . 188 78 . 11 90 Explosive . | . . . . . . Electromagnetic 98 | . 98 . . . . Impact . | . . . . . . Slashing . | . . . . . . Piercing . | . . . . . . Highest Corruption 1 | . 1 1 1 1 . Average Corruption 1 | . 1 1 1 1 . Corruption Purged . | . . . . . . Corruption Blocked . | . . . . . . Effects 12 | . 1 3 7 1 . Message Errors 3 | . . 1 2 . . Matter Fused 6 | . . 2 4 . . Energy Discharges 3 | . 1 . 1 1 . Overload Shots . | . . . . . . Overflow Damage . | . . . . . . Projectiles . | . . . . . . Explosions . | . . . . . . Melee . | . . . . . . Knockbacks . | . . . . . . Impact . | . . . . . . Kinetic . | . . . . . . Secondary . | . . . . . . Self-Inflicted Damage . | . . . . . . Shots . | . . . . . . Rammed 3 | . . 2 . 1 . Targets Rammed 3 | . . 2 . 1 . Kicked . | . . . . . . Crushed . | . . . . . . Highest Temperature 276 | . 276 40 . 40 84 Average Temperature 76 | . 117 20 . 22 31 Received Heat Transfer 120 | . 96 . . 24 . Siege Activations . | . . . . . . Robots Corrupted . | . . . . . . Combat Hostiles . | . . . . . . Parts Fried . | . . . . . . Impact Corruptions . | . . . . . . Robots Melted . | . . . . . . Combat Hostiles . | . . . . . . Parts Melted 1 | . 1 . . . . Heat Transferred 1029 | . 629 175 . 25 200 Parts Sabotaged . | . . . . . . Parts Stolen . | . . . . . . Parts Stripped . | . . . . . . Power Chain Reactions . | . . . . . . Alert | -11 -10 -10 -10 -9 -8 ------- Run | Yrd Mat Min Exi Min Mat Peak Influence 169 | . 169 65 . . 45 Initial 5 | . . 5 . . . Average 47 | . 110 25 . . 12 Maximum Alert Level . | . . . . . . Low Security (%) 100 | 100 100 100 . 100 100 Level 1 . | . . . . . . Level 2 . | . . . . . . Level 3 . | . . . . . . Level 4 . | . . . . . . Level 5 . | . . . . . . High Security . | . . . . . . Max Security . | . . . . . . Squads Dispatched 1 | . . . . . 1 Investigation . | . . . . . . Extermination . | . . . . . . Reinforcement 1 | . . . . . 1 Assault . | . . . . . . Garrison . | . . . . . . Intercept . | . . . . . . Searches Triggered . | . . . . . . Construction Impeded . | . . . . . . Haulers Reinforced . | . . . . . . Active Scanning Responses . | . . . . . . Cargo Convoy Interrupts . | . . . . . . Stealth | -11 -10 -10 -10 -9 -8 --------- Run | Yrd Mat Min Exi Min Mat Distress Signals 2 | . 1 . . . 1 Communications Jammed . | . . . . . . Distress Signals . | . . . . . . Times Spotted 19 | . 9 3 . 2 5 Peak Tracking Total 5 | . 4 2 . 2 5 Tactical Retreats . | . . . . . . Traps | -11 -10 -10 -10 -9 -8 ------- Run | Yrd Mat Min Exi Min Mat Traps Triggered 1 | . 1 . . . . Indirectly . | . . . . . . Trap Hack Attempts . | . . . . . . Triggered . | . . . . . . Disarmed . | . . . . . . Reprogrammed . | . . . . . . Reused . | . . . . . . Traps Extracted . | . . . . . . Installed . | . . . . . . Triggered . | . . . . . . Machines | -11 -10 -10 -10 -9 -8 ---------- Run | Yrd Mat Min Exi Min Mat Machines Disabled . | . . . . . . Max in Single Turn . | . . . . . . Machines Repaired . | . . . . . . Machines Dismantled . | . . . . . . Machines Sabotaged . | . . . . . . Overloaded Fab Kills . | . . . . . . Hacking | -11 -10 -10 -10 -9 -8 --------- Run | Yrd Mat Min Exi Min Mat Machines Accessed 6 | . 2 . 4 . . Terminals 2 | . 2 . . . . Fabricators . | . . . . . . Repair Stations . | . . . . . . Recycling Units . | . . . . . . Scanalyzers . | . . . . . . Garrison Access . | . . . . . . Total Hacks 51 | . 2 . 49 . . Successful 51 | . 2 . 49 . . Failed . | . . . . . . Catastrophic . | . . . . . . Database Lockouts . | . . . . . . Manual . | . . . . . . Terminals 2 | . 2 . . . . Fabricators . | . . . . . . Repair Stations . | . . . . . . Recycling Units . | . . . . . . Scanalyzers . | . . . . . . Garrison Access . | . . . . . . Terminal Hacks 51 | . 2 . 49 . . Record 49 | . . . 49 . . Alert Level 1 | . 1 . . . . Zone Layout 1 | . 1 . . . . Fabricator Hacks . | . . . . . . Repair Station Hacks . | . . . . . . Recycling Unit Hacks . | . . . . . . Scanalyzer . | . . . . . . Garrison Access Hacks . | . . . . . . Unauthorized Hacks . | . . . . . . Terminals . | . . . . . . Fabricators . | . . . . . . Repair Stations . | . . . . . . Recycling Units . | . . . . . . Scanalyzers . | . . . . . . Garrison Access . | . . . . . . Data Cores Recovered . | . . . . . . Used . | . . . . . . Hacking Detections . | . . . . . . Full Trace Events . | . . . . . . Feedback Events . | . . . . . . Feedback Blocked . | . . . . . . Robot Schematics Acquired . | . . . . . . Robots Built . | . . . . . . Authchips . | . . . . . . Time . | . . . . . . Total Robot Build Rating . | . . . . . . Part Schematics Acquired . | . . . . . . Parts Built . | . . . . . . Authchips . | . . . . . . Time . | . . . . . . Total Part Build Rating . | . . . . . . Parts Repaired . | . . . . . . Time . | . . . . . . Parts Recycled . | . . . . . . Recycled Matter . | . . . . . . Retrieved Matter . | . . . . . . Retrieved Components . | . . . . . . Parts Scanalyzed . | . . . . . . Part Schematics Acquired . | . . . . . . Parts Damaged . | . . . . . . Bothacking | -11 -10 -10 -10 -9 -8 ------------ Run | Yrd Mat Min Exi Min Mat Used RIF Installer . | . . . . . . Robots Hacked . | . . . . . . Non-combat . | . . . . . . Combat . | . . . . . . Robot Hacks Applied . | . . . . . . Relay Couplers Released . | . . . . . . Fabnet Peak Effective % . | . . . . . . Robots Rewired . | . . . . . . Allies Hacked . | . . . . . . Hacks Repelled . | . . . . . . Allies | -11 -10 -10 -10 -9 -8 -------- Run | Yrd Mat Min Exi Min Mat Total Allies . | . . . . . . Largest Group . | . . . . . . Highest-Rated Group . | . . . . . . Highest-Rated Ally . | . . . . . . Total Orders . | . . . . . . Ally Attacks . | . . . . . . Total Damage . | . . . . . . Kills . | . . . . . . Allies Corrupted . | . . . . . . Allies Melted . | . . . . . . Intel | -11 -10 -10 -10 -9 -8 ------- Run | Yrd Mat Min Exi Min Mat Robot Analysis Total . | . . . . . . Derelict Logs Recovered 1 | . . 1 . . . Drone Launches . | . . . . . . Drone Recoveries . | . . . . . . Exploration | -11 -10 -10 -10 -9 -8 ------------- Run | Yrd Mat Min Exi Min Mat Turns Passed 2372 | 76 446 439 1030 110 271 Spaces Moved 1360 | 42 229 255 644 65 125 Core 10 | 10 . . . . . Treads 1350 | 32 229 255 644 65 125 Legs . | . . . . . . Wheels . | . . . . . . Hover . | . . . . . . Flight . | . . . . . . Fastest Speed 50 | 50 160 160 160 160 160 Average Speed 159 | 133 160 160 160 160 160 Slowest Speed 240 | 160 160 160 160 160 240 Overloaded Moves . | . . . . . . Propulsion Burnouts . | . . . . . . Robots Hopped . | . . . . . . Cave-ins Triggered . | . . . . . . Exploration Rate (%) 37 | 4 42 58 93 18 11 Regions Visited 5 Branch Regions 3 Pre-discovered Areas 1 | . . . 1 . . Known Exits Taken 1 | . . 1 . . . Unknown Exits Taken 4 | 1 1 . 1 1 . Scrap Searched 1 | . . . . 1 . Spaces Dug . | . . . . . . Terrain Destroyed . | . . . . . . Melee . | . . . . . . Projectile . | . . . . . . AOE . | . . . . . . Terrain Rammed . | . . . . . . Walls Destroyed . | . . . . . . Machines Disabled . | . . . . . . Actions | -11 -10 -10 -10 -9 -8 --------- Run | Yrd Mat Min Exi Min Mat Total 1474 | 62 270 269 644 67 162 Wait 7 | 7 . . . . . Move 1355 | 41 228 254 643 64 125 Hop . | . . . . . . Pick Up 26 | 8 8 4 1 . 5 Fast Attach . | . . . . . . Attach 16 | 6 4 . . . 6 Detach . | . . . . . . Swap 4 | . 1 . . . 3 Drop 3 | . 3 . . . . Fire 60 | . 26 9 . 2 23 Melee . | . . . . . . Ram . | . . . . . . Kick . | . . . . . . Crush 3 | . . 2 . 1 . Escape Stasis . | . . . . . . Rewire . | . . . . . . Trap . | . . . . . . Miscellaneous . | . . . . . . Route ------- -11/Scrapyard -10/Materials (discovered 2 exits: [*Mat] / [*Min]) -10/Mines -10/Exiles (discovered 2 exits: [*Min x2]) -9/Mines -8/Materials History --------- Turn | Location | Event 11 | -11/Scrapyard | Discovered new exit (range 16) 77 | -11/Scrapyard | Entered Materials 301 | -10/Materials | Discovered new exit (range 7) 312 | -10/Materials | Build established: Mutant 460 | -10/Materials | Discovered new exit (range 17) 523 | -10/Materials | Entered Mines 654 | -10/Mines | Identified exit to Exiles 688 | -10/Mines | A weapon hastily lodged in a ceiling crevice suddenly fell to the ground 956 | -10/Mines | Deemed a non-threat by the Exiles lab entrance 962 | -10/Mines | Entered Exiles 986 | -10/Exiles | Discovered new exit (range 15) 1006 | -10/Exiles | Met 8R-AWN 1039 | -10/Exiles | Met EX-HEX 1136 | -10/Exiles | Met EX-DEC 1169 | -10/Exiles | Visited The Gauntlet 1359 | -10/Exiles | Learned location of Zion (-7) 1397 | -10/Exiles | Met EX-BIN 1621 | -10/Exiles | Discovered new exit (range 15) 1992 | -10/Exiles | Entered Mines 2084 | -9/Mines | Discovered new exit (range 8) 2102 | -9/Mines | Entered Materials 2102 | -8/Materials | Evolved 4 slots: Power x1, Utility x3 2291 | -8/Materials | Lost 3 parts (1p1n1u) 2373 | -8/Materials | Self-destructed Last Messages --------------- K-01 Serf collects debris. T-07 Excavator is excavating. K-01 Serf collects debris. Penetrated by Slug. Acquired Reflective Plating. Penetrated by Slug. Slug penetrates Wall. Penetrated by Slug. Sensor Array destroyed. Lgt. Treads destroyed. Penetrated by Slug. Ion Engine destroyed. H-55 Commando destroyed. Acquired 50 matter. K-01 Serf collects debris. Acquired Hpw. Tractor Beam. K-01 Serf collects debris. W-25 Informer sends out distress signal. ALERT: Hostiles spotted, dispatching reinforcements to Terminal M002. Map ----- +----------------------------------------------------+ | ??????????????????????????????????????????????? | | ??????????????????????????????????????????????? | | ??????????????????????????????????????????????? | | ??????????????????????????????????????????????? | | ??????????????????????????????????????????????? | | ??????????????????????????????????????????????? | | ??????????????????????????????????????????????? | | ???????????????????????? ???????????????????? | | ????????????????????????#+#???????????????????? | | ????????????????????????# #???????????????????? | | ????????????????????????? ????????????????????? | | ????????????????????????? ##??????????????????? | | ????????????????????????? ##??????????????????? | | ???????????????????????## ??????????????????? | | ???????????????????????## ???????????????????? | | ??????????????????????? ???????????????????? | | ???????????????????????? ???????????????????? | | ??????????????????????? ???????????????????? | | ???????????????????????## ???????????????????? | | ???????????????????????## g ??????????????????? | | ????????????##### ???## ##??????????????????? | | ????????????########???##g##??????????????????? | | ????????????## ##???##k##??????????????????? | | ????????????## #######g##??????????????????? | | ????????????## ####### ##??????????????????? | | ????????????## + @##??????????????????? | | ????????????## ####### ##??????????????????? | | ????????????## ####### ##??????????????????? | | ????????????## ##???##w##??????????????????? | | ????????????## ##???## ##??????????????????? | | ????????????## ##???## ##??????????????????? | | ????????????#####+##??? #??????????????????? | | ????????????##### ##???? ???????????????????? | | ???????????????## ##???? ???????????????????? | | ???????????????## ##???? ?????? ?? #?????? | | ???????????????## ##???? #???? ###+##?????? | | ???????????????## ##???# ###???? ### ?????? | | ???????????????## ##???#+###???? ##?????? | | ???????????????## ##### ?????? # ?????? | | ???????????????## #####????????? + ?????? | | ???????????????## ## ???? # ?????? | | ???????????????##/## ########## # ?????? | | ?????????????## # ## ####### + ?????? | | ?????????????## # ## # # ?????? | | ?????????????## #### ##!! # ##?????? | | ?????????????## ##### ### ! # ##?????? | | ?????????????## ##### ###! # ##?????? | | ?????????????## ##### ### # ##?????? | | ?????????????########### + =! # ##?????? | | ?????????????#### # # *# ##?????? | +----------------------------------------------------+ Best States ------------- Heat Dissipation 31 Energy Generation 19 Energy Capacity 410 Matter Stores 300 Matter Capacity 300 Sight Range 20 Robot Scan Range 14 Terrain Scan Density 10 Evasion (%) 40 Recoil Reduction 2 Item Schematics ----------------- None Robot Schematics ------------------ None Fabricated ------------ Nothing Alien Tech Used ----------------- None Achievements -------------- Librarian Challenges ------------ None Game ------ Seed EncryptedDeepPlating Manual? 0 Play Time 00:17:48 Cumulative 2.7 hours Start 2024.05.22 @ 22:36:36 End 2024.05.23 @ 07:55:17 Sessions 3 Manual Loads 0 Difficulty Rogue Special Mode None Game No. 4 Rogue 2 Adventurer 0 Explorer 2 Win Type - Total 0 Types 0/0/0/0/0/0/0/0/0 Lore% 11 Gallery% 14 Achievement% 14 Wizard Run 0 Options --------- Layout 1 ASCII 0 Keyboard 0 Movement Mouse Keybinds 0 Fullscreen 1 Font 24/Smallcaps Map View 50x35 Zoom Use 0% Tactical HUD 0 Map Filters NONE Filters NONE Steam 1 RUN: 740fc032-f63e-4b58-b7a7-b3dd1563fcd5